bitfinex/quotes_SOLUSD_20250522
["timestamp","ask_amount","ask_price","bid_price","bid_amount"]
[1747889024161,5.64620857,177.11,177.07,15.81868604]
[1747889024343,5.64620857,177.11,177.08,14.16578604]
[1747889024543,5.64620857,177.11,177.07,1.6529]
[1747889024759,5.64620857,177.11,177.08,14.16578604]
[1747889025762,5.64620857,177.11,177.08,22.2854808]
[1747889025963,27.93168937,177.11,177.05,22.2854808]
[1747889026343,27.93168937,177.11,177.03,19.98012847]
[1747889026552,27.93168937,177.11,177.05,22.2854808]
[1747889026776,27.93168937,177.11,177.06,22.2854808]
[1747889027153,22.2854808,177.1,177.03,7.6244]
[1747889027353,22.2854808,177.1,177.05,22.2854808]
[1747889027567,56.1654808,177.09,177.04,22.2854808]
[1747889027856,56.1654808,177.09,177.03,1.5555]
[1747889028064,56.1654808,177.09,177.04,22.2854808]
[1747889028241,39.5270112,177.09,177.04,22.2854808]
[1747889028447,33.88,177.09,177.06,22.2854808]
[1747889029052,33.88,177.09,177.05,22.2854808]
[1747889029477,39.52693456,177.09,177.05,22.2854808]
[1747889029781,5.64625937,177.11,177.05,22.2854808]
[1747889029948,27.93174017,177.11,177.05,22.2854808]
[1747889030262,22.2854808,177.1,177.05,22.2854808]
[1747889030664,27.93175928,177.11,177.05,22.2854808]
[1747889030843,33.88,177.1,177.07,22.2854808]
[1747889031344,39.52627848,177.11,177.07,22.2854808]
[1747889031543,61.81175928,177.11,177.06,22.2854808]
[1747889032878,22.2854808,177.1,177.05,22.2854808]
[1747889033058,61.81175928,177.11,177.05,22.2854808]
[1747889033372,61.81175928,177.11,177.06,22.2854808]
[1747889034065,39.52627848,177.11,177.06,22.2854808]
[1747889034273,61.81175928,177.11,177.06,22.2854808]
[1747889034451,39.52627848,177.11,177.06,22.2854808]
[1747889034764,61.81175928,177.11,177.06,22.2854808]
[1747889035773,61.81175928,177.11,177.05,22.2854808]
[1747889036573,54.4332532,177.14,177.07,22.2854808]
[1747889036574,22.2854808,177.12,177.07,22.2854808]
[1747889037361,27.93147725,177.12,177.07,26.0]
[1747889037974,61.81147725,177.12,177.07,26.0]
[1747889038178,27.93147725,177.12,177.07,26.0]
[1747889038346,22.2854808,177.13,177.07,26.0]
[1747889038550,56.1654808,177.13,177.08,22.2854808]
[1747889038950,56.1654808,177.13,177.07,26.0]
[1747889039151,22.2854808,177.12,177.07,48.2854808]
[1747889039378,27.93141238,177.12,177.07,48.2854808]
[1747889040569,27.93141238,177.12,177.03,1.5555]
[1747889040570,22.2854808,177.11,177.04,26.0]
[1747889040761,22.2854808,177.11,177.08,26.0]
[1747889041179,5.64593158,177.12,177.08,26.0]
[1747889041370,27.93141238,177.12,177.08,26.0]
[1747889042290,22.2854808,177.1,177.03,7.2041856]
[1747889042457,5.64593158,177.12,177.09,22.2854808]
[1747889042785,39.52593158,177.12,177.09,22.2854808]
[1747889043858,5.6456505,177.13,177.11,26.0]
[1747889044058,33.88,177.13,177.11,26.0]
[1747889044268,39.52557936,177.13,177.11,26.0]
[1747889044485,5.64557936,177.13,177.07,26.0]
[1747889044785,5.64365934,177.19,177.13,26.0]
[1747889044987,57.071727,177.2,177.17,48.2854808]
[1747889045767,23.191727,177.2,177.19,48.2854808]
[1747889047781,23.191727,177.2,177.19,40.12225256]
[1747889048490,23.191727,177.2,177.19,26.0]
[1747889048690,28.83506785,177.2,177.19,26.0]
[1747889049295,28.83506785,177.2,177.13,1.6014]
[1747889049485,28.83506785,177.2,177.15,14.12225256]
[1747889050084,42.95732041,177.2,177.15,14.12225256]
[1747889050276,14.12225256,177.19,177.14,26.0]
[1747889050482,47.98225256,177.18,177.12,14.12225256]
[1747889050799,33.86,177.18,177.13,26.0]
[1747889050979,47.98225256,177.18,177.13,40.12225256]
[1747889052172,5.64429643,177.17,177.13,40.12225256]
[1747889052573,19.76654899,177.17,177.13,26.0]
[1747889053374,19.76654899,177.17,177.14,26.0]
[1747889053375,5.64429643,177.17,177.14,26.0]
[1747889053574,5.64461503,177.16,177.14,26.0]
[1747889053998,14.12225256,177.15,177.1,14.12225256]
[1747889054194,14.12225256,177.15,177.08,1.5165]
[1747889054401,53.61615262,177.16,177.12,14.12225256]
[1747889054702,53.61615262,177.16,177.09,26.0]
[1747889054881,14.12225256,177.12,177.08,1.5165]
[1747889055068,14.12225256,177.11,177.06,14.12225256]
[1747889055274,14.12225256,177.1,177.05,20.16165256]
[1747889055579,14.12225256,177.1,177.08,26.0]
[1747889055786,5.64684623,177.09,177.08,26.0]
[1747889055993,5.64684623,177.09,177.05,14.12225256]
[1747889056190,5.64684623,177.09,177.06,26.0]
[1747889056901,19.76909879,177.09,177.04,15.75175256]
[1747889057405,19.76909879,177.09,177.04,41.75175256]
[1747889057602,5.64684623,177.09,177.05,14.12225256]
[1747889058598,5.64684623,177.09,177.06,14.12225256]
[1747889060479,5.64684623,177.09,177.07,26.0]
[1747889060708,19.76846113,177.11,177.07,26.0]
[1747889061801,5.64620857,177.11,177.09,26.0]
[1747889061983,5.64620857,177.11,177.09,14.12225256]
[1747889062678,33.88,177.13,177.09,14.12225256]
[1747889062679,5.64588979,177.12,177.09,14.12225256]
[1747889063105,5.64588979,177.12,177.04,33.27786172]
[1747889063302,5.64588979,177.12,177.09,14.12225256]
[1747889063685,5.64588979,177.12,177.04,7.27786172]
[1747889063886,19.76814235,177.12,177.1,26.0]
[1747889064493,33.88286683,177.12,177.09,26.0]
[1747889064691,5.64588979,177.12,177.1,26.0]
[1747889065794,5.64588979,177.12,177.09,40.12225256]
[1747889066182,5.64588979,177.12,177.09,26.0]
[1747889068408,5.64588979,177.12,177.06,26.0]
[1747889068711,5.64588979,177.12,177.09,14.12225256]
[1747889069512,5.64588979,177.12,177.1,14.12225256]
[1747889069711,5.64555369,177.14,177.11,14.12225256]
[1747889070009,5.64491079,177.16,177.12,14.12225256]
[1747889070611,5.64491079,177.16,177.11,14.12225256]
[1747889071410,5.64491079,177.16,177.12,14.12225256]
[1747889071617,5.64431408,177.17,177.13,14.12225256]
[1747889072414,14.12225256,177.16,177.12,26.0]
[1747889072622,14.12225256,177.15,177.09,26.0]
[1747889072793,14.12225256,177.14,177.09,40.12225256]
[1747889073189,5.64557104,177.13,177.09,40.12225256]
[1747889074217,5.64557104,177.13,177.09,26.0]
[1747889074517,5.64557104,177.13,177.1,14.12225256]
[1747889074718,5.64525234,177.14,177.09,40.12225256]
[1747889075098,53.64725062,177.15,177.09,40.12225256]
[1747889075304,53.64725062,177.15,177.1,14.12225256]
[1747889075603,39.52499806,177.15,177.1,14.12225256]
[1747889077112,5.64429643,177.17,177.13,14.12225256]
[1747889077410,19.7659119,177.19,177.14,14.12225256]
[1747889078407,19.7659119,177.19,177.12,31.64587445]
[1747889078607,19.7659119,177.19,177.14,26.0]
[1747889078804,19.7659119,177.19,177.14,40.12225256]
[1747889079610,23.191727,177.2,177.18,14.12225256]
[1747889079916,23.191727,177.2,177.16,26.0]
[1747889079917,14.12225256,177.19,177.16,26.0]
[1747889080088,14.12225256,177.17,177.15,26.0]
[1747889080418,14.12225256,177.18,177.15,26.0]
[1747889080806,14.12225256,177.16,177.07,8.0247]
[1747889081000,14.12225256,177.15,177.13,26.0]
[1747889081618,5.64525234,177.14,177.13,26.0]
[1747889082429,5.64525234,177.14,177.12,26.0]
[1747889083517,14.12225256,177.13,177.11,26.0]
[1747889083820,5.64525234,177.14,177.11,26.0]
[1747889084118,5.64525234,177.14,177.13,26.0]
[1747889087622,19.76686759,177.16,177.13,26.0]
[1747889088013,5.64365934,177.19,177.1,26.0]
[1747889088323,5.64365934,177.19,177.07,8.0247]
[1747889088324,14.12225256,177.17,177.14,26.0]
[1747889088501,14.12225256,177.16,177.14,26.0]
[1747889088902,14.12225256,177.17,177.14,26.0]
[1747889090122,5.64461503,177.16,177.14,26.0]
[1747889091993,19.76663502,177.17,177.14,26.0]
[1747889092194,5.64365934,177.19,177.15,26.0]
[1747889092399,14.12225256,177.18,177.15,26.0]
[1747889092900,5.64365934,177.19,177.15,26.0]
[1747889095425,42.95739361,177.2,177.15,40.12225256]
[1747889096024,28.83514105,177.2,177.15,40.12225256]
[1747889096506,28.83514105,177.2,177.15,14.12225256]
[1747889096713,42.95739361,177.2,177.15,14.12225256]
[1747889096909,23.191727,177.2,177.19,40.12225256]
[1747889097124,23.191727,177.2,177.19,26.0]
[1747889097327,23.191727,177.2,177.19,40.12225256]
[1747889098410,23.191727,177.2,177.19,14.12225256]
[1747889100732,23.191727,177.2,177.17,40.12225256]
[1747889101035,23.191727,177.2,177.18,14.12225256]
[1747889101213,23.191727,177.2,177.19,14.12225256]
[1747889102616,23.191727,177.2,177.17,31.64423842]
[1747889102821,23.191727,177.2,177.19,14.12225256]
[1747889103423,23.191727,177.2,177.18,14.12225256]
[1747889103947,23.191727,177.2,177.19,14.12225256]
[1747889104110,23.191727,177.2,177.19,40.12225256]
[1747889104821,23.191727,177.2,177.19,26.0]
[1747889105026,23.191727,177.2,177.17,26.0]
[1747889105429,23.191727,177.2,177.18,26.0]
[1747889105430,42.95739141,177.2,177.18,26.0]
[1747889105630,28.83513885,177.2,177.18,26.0]
[1747889106330,14.12225256,177.19,177.11,10.24873052]
[1747889106656,28.83513885,177.2,177.14,26.0]
[1747889106657,14.12225256,177.18,177.14,26.0]
[1747889107014,14.12225256,177.17,177.11,14.12225256]
[1747889107337,14.12225256,177.16,177.1,14.12225256]
[1747889108133,14.12225256,177.16,177.11,26.0]
[1747889108744,14.12225256,177.15,177.11,26.0]
[1747889108922,5.64557104,177.13,177.12,26.0]
[1747889109323,5.64557104,177.13,177.09,40.12225256]
[1747889109727,5.64429643,177.17,177.11,14.12225256]
[1747889109924,14.12225256,177.15,177.09,14.12225256]
[1747889110130,5.64429643,177.17,177.09,40.12225256]
[1747889110527,5.64429643,177.17,177.09,26.0]
[1747889110725,14.12225256,177.14,177.09,40.12225256]
[1747889111440,19.76778508,177.14,177.09,40.12225256]
[1747889111847,19.76778508,177.14,177.09,26.0]
[1747889112342,19.76778508,177.14,177.09,40.12225256]
[1747889112730,14.12225256,177.13,177.09,26.0]
[1747889113043,14.12225256,177.11,177.05,14.12225256]
[1747889113343,5.64652738,177.1,177.08,26.0]
[1747889114247,19.76877994,177.1,177.08,26.0]
[1747889114442,19.76877994,177.1,177.07,26.0]
[1747889114630,5.64652738,177.1,177.04,14.12225256]
[1747889114829,14.12225256,177.09,177.04,14.12225256]
[1747889115034,14.12225256,177.09,177.07,26.0]
[1747889115448,5.64716512,177.08,177.06,26.0]
[1747889115629,14.12225256,177.07,177.02,14.12225256]
[1747889115829,14.12225256,177.08,177.03,14.12225256]
[1747889116039,14.12225256,177.09,177.04,14.12225256]
[1747889116345,14.12225256,177.08,177.06,26.0]
[1747889116530,14.12225256,177.08,177.03,14.12225256]
[1747889116531,14.12225256,177.08,177.03,40.12225256]
[1747889116928,18.79181043,177.1,177.03,26.0]
[1747889117127,14.12225256,177.06,177.02,26.0]
[1747889117341,14.12225256,177.06,176.99,6.5833]
[1747889117342,14.12225256,177.06,177.0,14.12225256]
[1747889117652,14.12225256,177.05,177.0,40.12225256]
[1747889118225,19.7701335,177.06,177.0,40.12225256]
[1747889118425,14.12225256,177.06,177.0,45.77191419]
[1747889118646,14.12225256,177.07,177.02,14.12225256]
[1747889118825,14.12225256,177.08,177.03,14.12225256]
[1747889119241,33.88,177.1,177.06,14.12225256]
[1747889120255,33.88,177.1,177.07,14.12225256]
[1747889120549,19.76843971,177.12,177.07,14.12225256]
[1747889121239,14.12225256,177.12,177.07,14.12225256]
[1747889121749,19.76821937,177.12,177.07,14.12225256]
[1747889123256,19.76821937,177.12,177.06,26.0]
[1747889123552,14.12225256,177.08,177.06,26.0]
[1747889123732,19.76950409,177.08,177.05,26.0]
[1747889123936,14.12225256,177.07,177.05,26.0]
[1747889124135,5.64725153,177.08,177.03,26.0]
[1747889124437,14.12225256,177.05,177.0,14.12225256]
[1747889124643,14.12225256,177.05,176.99,14.12225256]
[1747889124954,18.79181043,177.07,176.98,14.12225256]
[1747889125132,14.12225256,177.04,177.01,26.0]
[1747889125658,14.12225256,177.04,177.02,26.0]
[1747889125835,5.64876009,177.03,177.02,26.0]
[1747889126041,19.77101265,177.03,176.96,14.12225256]
[1747889126356,19.77101265,177.03,176.98,26.0]
[1747889126357,14.12225256,177.0,176.98,26.0]
[1747889126950,14.12225256,176.99,176.94,22.04162907]
[1747889127155,14.12225256,177.0,176.97,26.0]
[1747889128045,14.12225256,176.99,176.97,26.0]
[1747889128239,19.77215658,177.0,176.97,26.0]
[1747889128432,14.12225256,177.01,176.97,26.0]
[1747889128756,14.12225256,177.02,176.97,40.12225256]
[1747889128941,14.12225256,177.01,176.96,40.12225256]
[1747889129443,5.64876009,177.03,176.96,26.0]
[1747889129444,14.12225256,177.0,176.96,26.0]
[1747889129954,5.64947014,177.01,176.95,14.12225256]
[1747889130137,5.64947014,177.01,176.96,14.12225256]
[1747889130338,19.7717227,177.01,176.96,14.12225256]
[1747889130859,14.12225256,177.01,176.96,14.12225256]
[1747889131360,19.77136887,177.02,176.97,40.12225256]
[1747889131659,19.77037455,177.05,177.0,14.12225256]
[1747889131853,5.64812199,177.05,177.01,26.0]
[1747889132156,5.64812199,177.05,177.01,40.12225256]
[1747889132354,6.2718,177.08,177.02,14.12225256]
[1747889132662,14.12225256,177.06,177.02,26.0]
[1747889133358,19.76974813,177.07,177.01,40.12225256]
[1747889134038,5.64749557,177.07,177.01,26.0]
[1747889134245,19.76974813,177.07,177.01,40.12225256]
[1747889134451,19.76974813,177.07,177.02,14.12225256]
[1747889135151,19.76974813,177.07,177.01,26.0]
[1747889135357,14.12225256,177.06,177.01,40.12225256]
[1747889135744,19.76974813,177.07,177.02,14.12225256]
[1747889135946,5.64749557,177.07,177.02,14.12225256]
[1747889136658,33.88,177.08,177.03,14.12225256]
[1747889136857,19.76949146,177.08,177.03,14.12225256]
[1747889137065,42.46,177.09,177.06,14.12225256]
[1747889137264,33.88,177.11,177.07,40.12225256]
[1747889137768,48.00225256,177.11,177.07,26.0]
[1747889137963,42.46,177.14,177.08,14.12225256]
[1747889138145,53.6478236,177.13,177.08,14.12225256]
[1747889138663,19.7678236,177.13,177.08,14.12225256]
[1747889139060,14.12225256,177.11,177.07,26.0]
[1747889141455,14.12225256,177.12,177.07,26.0]
[1747889142154,5.64620857,177.11,177.07,26.0]
[1747889142762,5.64620857,177.11,177.07,40.12225256]
[1747889142955,5.64620857,177.11,177.07,26.0]
[1747889143351,19.76846113,177.11,177.07,26.0]
[1747889144182,14.12225256,177.1,177.07,26.0]
[1747889146065,19.76846113,177.11,177.07,26.0]
[1747889146870,14.12225256,177.1,177.07,26.0]
[1747889147183,14.12225256,177.1,177.05,40.12225256]
[1747889147355,14.12225256,177.09,177.05,26.0]
[1747889147550,5.64620857,177.11,177.05,26.0]
[1747889147823,48.00225256,177.1,177.05,26.0]
[1747889147955,33.88,177.1,177.05,40.12225256]
[1747889148158,33.88,177.1,177.06,14.12225256]
[1747889148456,33.88,177.11,177.08,14.12225256]
[1747889148980,33.88,177.11,177.07,14.12225256]
[1747889149983,33.88,177.11,177.08,14.12225256]
[1747889150175,39.52624503,177.11,177.08,14.12225256]
[1747889150691,39.5261313,177.12,177.08,40.12225256]
[1747889151181,39.5261313,177.12,177.09,14.12225256]
[1747889151385,33.88,177.12,177.1,14.12225256]
[1747889151792,39.52603508,177.12,177.08,26.0]
[1747889151964,39.52603508,177.12,177.08,40.12225256]
[1747889152367,5.64603508,177.12,177.08,40.12225256]
[1747889152576,142.54558663,177.13,177.1,14.12225256]
[1747889152784,176.42558663,177.13,177.09,14.12225256]
[1747889153498,39.52558663,177.13,177.1,14.12225256]
[1747889154386,39.52558663,177.13,177.09,14.12225256]
[1747889154991,5.64558663,177.13,177.09,14.12225256]
[1747889155190,39.52558663,177.13,177.09,14.12225256]
[1747889156702,39.52558663,177.13,177.08,40.12225256]
[1747889158082,39.52558663,177.13,177.09,14.12225256]
[1747889160903,39.52558663,177.13,177.08,26.0]
[1747889160904,32.91406299,177.12,177.08,26.0]
[1747889161194,32.91406299,177.12,177.05,14.12225256]
[1747889161195,14.12225256,177.1,177.05,14.12225256]
[1747889161404,33.88,177.09,177.05,40.12225256]
[1747889161703,33.88,177.12,177.08,14.12225256]
[1747889161873,5.64532341,177.14,177.11,14.12225256]
[1747889162078,39.52532341,177.14,177.11,14.12225256]
[1747889162598,39.52532341,177.14,177.1,40.12225256]
[1747889162831,39.52532341,177.14,177.1,26.0]
[1747889163000,53.64757597,177.14,177.1,26.0]
[1747889163298,14.12225256,177.12,177.07,14.12225256]
[1747889163479,48.00225256,177.13,177.08,14.12225256]
[1747889163800,33.88,177.13,177.09,14.12225256]
[1747889164000,5.64588979,177.12,177.09,14.12225256]
[1747889164205,5.64588979,177.12,177.08,14.12225256]
[1747889165477,5.64588979,177.12,177.09,14.12225256]
[1747889166502,19.76814235,177.12,177.07,40.12225256]
[1747889166798,14.12225256,177.1,177.07,26.0]
[1747889166987,33.88,177.09,177.07,26.0]
[1747889168505,33.88,177.09,177.08,14.12225256]
[1747889168704,33.88,177.09,177.07,40.12225256]
[1747889169497,33.88,177.09,177.08,14.12225256]
[1747889169696,5.6456345,177.13,177.08,14.12225256]
[1747889169884,33.88,177.12,177.1,26.0]
[1747889170680,39.52603698,177.12,177.1,26.0]
[1747889170884,39.52603698,177.12,177.08,14.12225256]
[1747889171083,39.52603698,177.12,177.09,26.0]
[1747889171712,53.64828954,177.12,177.06,14.12225256]
[1747889171885,53.64828954,177.12,177.09,26.0]
[1747889172088,14.12225256,177.11,177.09,26.0]
[1747889172304,14.12225256,177.11,177.08,26.0]
[1747889172478,5.64652738,177.1,177.05,14.12225256]
[1747889172683,5.64652738,177.1,177.06,14.12225256]
[1747889173698,5.64620857,177.11,177.06,14.12225256]
[1747889174002,5.64620857,177.11,177.07,14.12225256]
[1747889174396,5.64620857,177.11,177.06,14.12225256]
[1747889175213,5.64397787,177.18,177.13,26.0]
[1747889175514,12.74191995,177.19,177.16,14.12225256]
[1747889175704,23.191727,177.2,177.17,14.12225256]
[1747889177286,23.191727,177.2,177.16,14.12225256]
[1747889177501,42.95744636,177.2,177.14,40.12225256]
[1747889177712,14.12225256,177.18,177.14,26.0]
[1747889178012,14.12225256,177.18,177.15,26.0]
[1747889178614,14.12225256,177.18,177.12,14.12225256]
[1747889178796,14.12225256,177.18,177.12,40.12225256]
[1747889179222,19.76645064,177.18,177.12,40.12225256]
[1747889180121,19.76645064,177.18,177.13,14.12225256]
[1747889182341,33.88,177.19,177.16,14.12225256]
[1747889182834,23.191727,177.2,177.16,14.12225256]
[1747889183142,23.191727,177.2,177.18,14.12225256]
[1747889183821,23.191727,177.2,177.19,14.12225256]
[1747889185841,23.191727,177.2,177.19,19.7659119]
[1747889186142,23.191727,177.2,177.19,45.7659119]
[1747889188319,23.191727,177.2,177.19,19.7659119]
[1747889188728,23.191727,177.2,177.19,14.12225256]
[1747889189638,23.191727,177.2,177.18,14.12225256]
[1747889189937,23.191727,177.2,177.18,40.12225256]
[1747889190245,23.191727,177.2,177.19,14.12225256]
[1747889193348,23.191727,177.2,177.19,45.7659119]
[1747889193558,23.191727,177.2,177.19,14.12225256]
[1747889195727,23.191727,177.2,177.19,19.7659119]
[1747889196647,23.191727,177.2,177.19,14.12225256]
[1747889204347,23.191727,177.2,177.19,19.7659119]
[1747889207144,23.191727,177.2,177.19,14.12225256]
[1747889208043,23.191727,177.2,177.19,40.12225256]
[1747889210177,23.191727,177.2,177.19,26.0]
[1747889210541,28.83506785,177.2,177.19,26.0]
[1747889211158,28.83506785,177.2,177.17,26.0]
[1747889211366,28.83506785,177.2,177.17,40.12225256]
[1747889211569,28.83506785,177.2,177.17,14.12225256]
[1747889212247,23.191727,177.2,177.17,14.12225256]
[1747889212969,23.191727,177.2,177.18,14.12225256]
[1747889214581,23.191727,177.2,177.17,14.12225256]
[1747889215281,23.191727,177.2,177.18,14.12225256]
[1747889217654,23.191727,177.2,177.16,31.64455633]
[1747889217655,23.191727,177.2,177.19,14.12225256]
[1747889217852,23.191727,177.2,177.19,40.12225256]
[1747889218062,23.191727,177.2,177.19,14.12225256]
[1747889218369,23.191727,177.2,177.19,19.7659119]
[1747889218550,23.191727,177.2,177.19,14.12225256]
[1747889218759,23.191727,177.2,177.19,26.0]
[1747889219059,23.191727,177.2,177.19,40.12225256]
[1747889220573,23.191727,177.2,177.19,26.0]
[1747889223148,23.191727,177.2,177.18,14.12225256]
[1747889223359,23.191727,177.2,177.17,40.12225256]
[1747889224476,28.83518507,177.2,177.16,40.12225256]
[1747889225051,23.191727,177.2,177.16,40.12225256]
[1747889225351,23.191727,177.2,177.17,14.12225256]
[1747889225679,23.191727,177.2,177.16,40.12225256]
[1747889225861,23.191727,177.2,177.18,14.12225256]
[1747889226562,23.191727,177.2,177.19,14.12225256]
[1747889226758,23.191727,177.2,177.19,40.12225256]
[1747889228479,23.191727,177.2,177.19,19.7659119]
[1747889229775,23.191727,177.2,177.19,45.7659119]
[1747889229982,23.191727,177.2,177.19,14.12225256]
[1747889232769,23.191727,177.2,177.19,21.3085119]
[1747889232953,5.6405377,177.29,177.22,26.0]
[1747889233158,5.6405377,177.29,177.26,14.12225256]
[1747889233876,5.6405377,177.29,177.24,26.0]
[1747889234082,5.6405377,177.29,177.25,14.12225256]
[1747889234782,5.6405377,177.29,177.26,40.12225256]
[1747889235877,5.6405377,177.29,177.25,26.0]
[1747889236093,5.6405377,177.29,177.24,14.12225256]
[1747889236257,5.6405377,177.29,177.24,26.0]
[1747889236258,19.76279026,177.29,177.24,26.0]
[1747889236661,5.6405377,177.29,177.24,40.12225256]
[1747889239587,19.76279026,177.29,177.24,40.12225256]
[1747889239767,19.76279026,177.29,177.24,26.0]
[1747889240289,53.60279026,177.29,177.24,26.0]
[1747889240787,53.60279026,177.29,177.24,40.12225256]
[1747889241588,39.4805377,177.29,177.24,40.12225256]
[1747889241790,53.60279026,177.29,177.24,40.12225256]
[1747889243183,53.60279026,177.29,177.21,26.0]
[1747889243184,14.12225256,177.26,177.21,26.0]
[1747889243382,14.12225256,177.26,177.21,40.12225256]
[1747889243560,39.4805377,177.29,177.24,14.12225256]
[1747889243762,53.60279026,177.29,177.24,14.12225256]
[1747889243958,39.4805377,177.29,177.24,14.12225256]
[1747889244189,39.4805377,177.29,177.25,14.12225256]
[1747889245266,5.6405377,177.29,177.25,40.12225256]
[1747889246165,5.6405377,177.29,177.25,14.12225256]
[1747889246372,5.6405377,177.29,177.24,14.12225256]
[1747889246373,19.76279026,177.29,177.24,14.12225256]
[1747889246583,19.76279026,177.29,177.23,26.0]
[1747889246792,19.76279026,177.29,177.24,14.12225256]
[1747889246972,5.64019326,177.3,177.26,14.12225256]
[1747889247179,39.48019326,177.3,177.27,14.12225256]
[1747889247385,5.64019326,177.3,177.27,14.12225256]
[1747889247689,5.64019326,177.3,177.26,14.12225256]
[1747889248673,5.63983982,177.31,177.26,14.12225256]
[1747889249075,45.9394838,177.33,177.28,14.12225256]
[1747889249289,79.7794838,177.33,177.29,14.12225256]
[1747889249887,14.12225256,177.32,177.24,26.0]
[1747889250069,14.12225256,177.31,177.27,26.0]
[1747889250263,14.12225256,177.3,177.25,40.12225256]
[1747889250482,14.12225256,177.29,177.25,26.0]
[1747889250789,5.64079422,177.28,177.25,26.0]
[1747889252498,136.9,177.31,177.25,40.12225256]
[1747889252681,5.63888575,177.34,177.3,14.12225256]
[1747889252882,5.63888575,177.34,177.28,26.0]
[1747889252883,19.76113831,177.34,177.28,26.0]
[1747889253083,14.12225256,177.32,177.27,14.12225256]
[1747889253290,14.12225256,177.32,177.26,40.12225256]
[1747889253488,14.12225256,177.32,177.26,26.0]
[1747889253687,14.12225256,177.32,177.27,14.12225256]
[1747889254194,93.61610014,177.34,177.27,14.12225256]
[1747889254392,14.12225256,177.33,177.27,14.12225256]
[1747889254703,19.76177432,177.32,177.27,14.12225256]
[1747889256586,5.63952176,177.32,177.28,14.12225256]
[1747889257791,5.63922695,177.33,177.29,14.12225256]
[1747889258414,19.76147951,177.33,177.28,40.12225256]
[1747889259796,5.63922695,177.33,177.29,14.12225256]
[1747889260573,5.63922695,177.33,177.28,26.0]
[1747889260778,5.63922695,177.33,177.29,14.12225256]
[1747889262482,19.76147951,177.33,177.28,40.12225256]
[1747889262904,19.76147951,177.33,177.28,26.0]
[1747889263101,53.60147951,177.33,177.28,26.0]
[1747889263410,19.76209238,177.31,177.26,14.12225256]
[1747889263592,19.76209238,177.31,177.26,40.12225256]
[1747889263905,5.63955455,177.32,177.29,14.12225256]
[1747889264414,5.63955455,177.32,177.28,14.12225256]
[1747889265281,39.47927582,177.33,177.3,14.12225256]
[1747889265481,53.60152838,177.33,177.28,14.12225256]
[1747889265884,14.12225256,177.31,177.26,26.0]
[1747889266085,39.47927582,177.33,177.27,14.12225256]
[1747889266306,53.60152838,177.33,177.28,14.12225256]
[1747889266989,39.47927582,177.33,177.28,14.12225256]
[1747889267197,53.60152838,177.33,177.24,5.64180837]
[1747889267398,14.12225256,177.32,177.27,14.12225256]
[1747889267811,39.47927582,177.33,177.28,14.12225256]
[1747889268000,39.47927582,177.33,177.3,14.12225256]
[1747889268189,39.47927582,177.33,177.28,14.12225256]
[1747889268720,39.47927582,177.33,177.29,14.12225256]
[1747889269408,18.79181043,177.3,177.22,14.12225256]
[1747889269591,14.12225256,177.28,177.22,14.12225256]
[1747889269795,14.12225256,177.28,177.22,40.12225256]
[1747889270102,14.12225256,177.28,177.23,14.12225256]
[1747889270295,14.12225256,177.28,177.22,14.12225256]
[1747889270503,33.84,177.29,177.25,14.12225256]
[1747889271308,33.84,177.29,177.26,14.12225256]
[1747889271513,5.64016311,177.3,177.26,14.12225256]
[1747889271792,5.64016311,177.3,177.25,14.12225256]
[1747889272001,5.64016311,177.3,177.26,40.12225256]
[1747889272895,19.76241567,177.3,177.26,26.0]
[1747889274117,19.76241567,177.3,177.24,14.12225256]
[1747889274296,14.12225256,177.29,177.23,14.12225256]
[1747889274499,33.84,177.28,177.22,14.12225256]
[1747889274827,47.96225256,177.28,177.23,14.12225256]
[1747889274997,47.96225256,177.28,177.22,14.12225256]
[1747889275511,47.96225256,177.28,177.23,14.12225256]
[1747889275700,53.60327312,177.28,177.23,14.12225256]
[1747889278496,53.60327312,177.28,177.22,14.12225256]
[1747889279109,53.60327312,177.28,177.21,1.5109]
[1747889279330,53.60327312,177.28,177.22,14.12225256]
[1747889280120,14.12225256,177.23,177.18,14.12225256]
[1747889280294,14.12225256,177.23,177.17,22.04162907]
[1747889280495,14.12225256,177.23,177.17,14.12225256]
[1747889281215,14.12225256,177.23,177.18,14.12225256]
[1747889281425,14.12225256,177.21,177.15,14.12225256]
[1747889281595,14.12225256,177.21,177.15,40.12225256]
[1747889281795,14.12225256,177.21,177.16,14.12225256]
[1747889282017,5.6423856,177.23,177.19,14.12225256]